{"text_format":"3","workbook":"xlsx","n_sheets":1,"sheets":["Vererõhk ja veresuhkur"],"not_rendered":{"defined_names":9},"read":"whole","date_system":"1900"}

{"sheet":"Vererõhk ja veresuhkur","index":0,"n_rows":13,"n_cols":11,"rows_kept":13,"merged":[[0,1,4,3],[0,4,0,9],[1,4,1,6],[1,7,1,9]]}
[null,"Vererõhu ja veresuhkru jälgimine",null,null,"Kohandage skaala väärtusi lahtrites E2 – J5."]
[{"$nulls":4},"VERERÕHK",null,null,"VERESUHKRU SKAALA"]
[{"$nulls":4},120,"SÜSTOOLNE",140,70,100,150]
[{"$nulls":4},80,"DIASTOOLNE",90,"MADAL","NORMAALNE","KÕRGE"]
[{"$nulls":4},"SIHTRÕHK",null,"HELISTAGE ARSTILE"]
[null,"Kuupäev","Kellaaeg","Sündmus","Süstoolne","Diastoolne","Pulss","Veresuhkur","Tase","Olek","Märkmed"]
[null,{"$f":"TODAY()","v":"2022-08-10"},"06:00:00","Äratus",129,79,72,55,{"$f":"VererõhkJaVeresuhkur[[#This Row],[Veresuhkur]]","v":55},{"$f":"IFERROR(IF(VererõhkJaVeresuhkur[[#This Row],[Tase]]=0,\"\",IF(VererõhkJaVeresuhkur[[#This Row],[Tase]]<=GMadal,\"Madal\",IF(AND(VererõhkJaVeresuhkur[[#This Row],[Tase]]>GMadal,VererõhkJaVeresuhkur[[#This Row],[Tase]]<GKõrge),\"Normaalne\",\"Kõrge\"))), \"\")","v":"Madal"}]
[null,{"$f":"TODAY()","v":"2022-08-10"},"07:00:00","Enne sööki",120,80,74,70,{"$f":"VererõhkJaVeresuhkur[[#This Row],[Veresuhkur]]","v":70},{"$f":"IFERROR(IF(VererõhkJaVeresuhkur[[#This Row],[Tase]]=0,\"\",IF(VererõhkJaVeresuhkur[[#This Row],[Tase]]<=GMadal,\"Madal\",IF(AND(VererõhkJaVeresuhkur[[#This Row],[Tase]]>GMadal,VererõhkJaVeresuhkur[[#This Row],[Tase]]<GKõrge),\"Normaalne\",\"Kõrge\"))), \"\")","v":"Madal"}]
[null,"2022-08-10","09:00:00","Pärast sööki",133,80,75,75,{"$f":"VererõhkJaVeresuhkur[[#This Row],[Veresuhkur]]","v":75},{"$f":"IFERROR(IF(VererõhkJaVeresuhkur[[#This Row],[Tase]]=0,\"\",IF(VererõhkJaVeresuhkur[[#This Row],[Tase]]<=GMadal,\"Madal\",IF(AND(VererõhkJaVeresuhkur[[#This Row],[Tase]]>GMadal,VererõhkJaVeresuhkur[[#This Row],[Tase]]<GKõrge),\"Normaalne\",\"Kõrge\"))), \"\")","v":"Normaalne"}]
[null,"2022-08-10","10:00:00","Ainult vererõhk",143,91,75,190,{"$f":"VererõhkJaVeresuhkur[[#This Row],[Veresuhkur]]","v":190},{"$f":"IFERROR(IF(VererõhkJaVeresuhkur[[#This Row],[Tase]]=0,\"\",IF(VererõhkJaVeresuhkur[[#This Row],[Tase]]<=GMadal,\"Madal\",IF(AND(VererõhkJaVeresuhkur[[#This Row],[Tase]]>GMadal,VererõhkJaVeresuhkur[[#This Row],[Tase]]<GKõrge),\"Normaalne\",\"Kõrge\"))), \"\")","v":"Kõrge"}]
[null,"2022-08-10","12:00:00","Enne sööki",141,84,70,140,{"$f":"VererõhkJaVeresuhkur[[#This Row],[Veresuhkur]]","v":140},{"$f":"IFERROR(IF(VererõhkJaVeresuhkur[[#This Row],[Tase]]=0,\"\",IF(VererõhkJaVeresuhkur[[#This Row],[Tase]]<=GMadal,\"Madal\",IF(AND(VererõhkJaVeresuhkur[[#This Row],[Tase]]>GMadal,VererõhkJaVeresuhkur[[#This Row],[Tase]]<GKõrge),\"Normaalne\",\"Kõrge\"))), \"\")","v":"Normaalne"}]
[null,{"$f":"TODAY()","v":"2022-08-10"},"15:00:00","Pärast sööki",132,80,68,90,{"$f":"VererõhkJaVeresuhkur[[#This Row],[Veresuhkur]]","v":90},{"$f":"IFERROR(IF(VererõhkJaVeresuhkur[[#This Row],[Tase]]=0,\"\",IF(VererõhkJaVeresuhkur[[#This Row],[Tase]]<=GMadal,\"Madal\",IF(AND(VererõhkJaVeresuhkur[[#This Row],[Tase]]>GMadal,VererõhkJaVeresuhkur[[#This Row],[Tase]]<GKõrge),\"Normaalne\",\"Kõrge\"))), \"\")","v":"Normaalne"},"Vererõhurohi võetud koos söögiga"]
[null,"Keskmised",null,null,{"$f":"SUBTOTAL(101,VererõhkJaVeresuhkur[Süstoolne])","v":133},{"$f":"SUBTOTAL(101,VererõhkJaVeresuhkur[Diastoolne])","v":{"v":82.33333333333333,"d":"82"}},{"$f":"SUBTOTAL(101,VererõhkJaVeresuhkur[Pulss])","v":{"v":72.33333333333333,"d":"72"}},{"$f":"SUBTOTAL(101,VererõhkJaVeresuhkur[Veresuhkur])","v":{"v":103.33333333333333,"d":"103"}}]